bitfinex-derivatives/quotes_SOLF0:USTF0_20250319
["timestamp","ask_amount","ask_price","bid_price","bid_amount"]
[1742423459363,246.76,133.71,133.69,7.4788]
[1742423460474,254.238,133.71,133.68,7.4794]
[1742423460675,246.81060922,133.71,133.69,0.05507547]
[1742423461576,246.81060922,133.71,133.69,7.53407547]
[1742423461977,246.81060922,133.71,133.69,0.05507547]
[1742423462176,0.05060922,133.71,133.69,0.05507547]
[1742423462476,0.05060922,133.71,133.7,7.4785]
[1742423463979,0.05060922,133.71,133.69,7.53387547]
[1742423464677,0.05060922,133.71,133.69,0.05507547]
[1742423465368,0.05060922,133.71,133.69,7.53407547]
[1742423466786,0.05060922,133.71,133.7,7.4785]
[1742423467674,0.05060922,133.71,133.7,34.3985]
[1742423470482,0.05060922,133.71,133.7,36.5349]
[1742423471084,0.05060922,133.71,133.7,26.92]
[1742423471383,0.05060922,133.71,133.7,34.3985]
[1742423471574,0.05060922,133.71,133.7,26.92]
[1742423471977,0.05060922,133.71,133.69,26.97507547]
[1742423472374,7.52880922,133.71,133.69,26.97507547]
[1742423472575,0.05060922,133.71,133.69,26.97507547]
[1742423472773,0.05060922,133.71,133.69,34.45407547]
[1742423473486,7.52860922,133.71,133.69,34.45407547]
[1742423473686,0.05060922,133.71,133.69,26.97507547]
[1742423474781,0.05060922,133.71,133.69,34.45407547]
[1742423475684,7.52890922,133.71,133.69,26.97507547]
[1742423475883,7.52890922,133.71,133.69,0.05507547]
[1742423476884,7.52890922,133.71,133.69,7.53407547]
[1742423477081,0.05060922,133.71,133.69,7.53407547]
[1742423478083,0.05060922,133.71,133.7,7.4785]
[1742423481486,9.22e-06,133.71,133.7,7.4785]
[1742423481690,9.22e-06,133.71,133.7,9.6188]
[1742423485294,13.49817947,133.78,133.7,4.393]
[1742423485491,13.49817947,133.78,133.73,13.49817947]
[1742423485692,7.4748,133.77,133.74,26.92]
[1742423485892,13.49817947,133.78,133.74,26.92]
[1742423486591,7.4752,133.76,133.75,0.0546162]
[1742423487195,7.52868313,133.77,133.75,0.0546162]
[1742423488692,0.05388313,133.77,133.76,7.4751]
[1742423489087,0.05388313,133.77,133.75,0.0546162]
[1742423489294,7.4751,133.76,133.75,0.0546162]
[1742423489494,20.97327947,133.76,133.75,0.0546162]
[1742423490194,13.49817947,133.76,133.75,0.0546162]
[1742423490697,20.97327947,133.76,133.75,0.0546162]
[1742423491400,13.49817947,133.76,133.75,0.0546162]
[1742423492098,21.0269626,133.77,133.75,0.0546162]
[1742423494397,7.4751,133.76,133.75,0.0546162]
[1742423496101,21.0269626,133.77,133.75,0.0546162]
[1742423498095,13.5520626,133.77,133.76,7.4751]
[1742423499902,0.05388313,133.77,133.76,7.4751]
[1742423502303,0.05388313,133.77,133.75,7.5300162]
[1742423506407,21.0266626,133.77,133.75,7.5300162]
[1742423506906,7.4751,133.76,133.75,0.0546162]
[1742423514320,0.05388313,133.77,133.75,0.0546162]
[1742423514719,0.05388313,133.77,133.76,7.4751]
[1742423516721,0.05388313,133.77,133.75,7.5300162]
[1742423517216,7.52848313,133.77,133.75,7.5300162]
[1742423517809,0.05388313,133.77,133.75,7.5300162]
[1742423518021,0.05388313,133.77,133.76,7.4751]
[1742423519113,257.07840779,133.81,133.79,7.4731]
[1742423519620,41.1609679,133.81,133.78,13.49817947]
[1742423520215,41.21764354,133.81,133.78,13.54666227]
[1742423520815,54.71582301,133.81,133.78,0.0484828]
[1742423522023,7.4729,133.8,133.78,0.0484828]
[1742423522223,41.21764354,133.81,133.78,0.0484828]
[1742423522619,0.05667564,133.81,133.78,0.0484828]
[1742423522819,0.05667564,133.81,133.79,7.4734]
[1742423524226,7.52907564,133.81,133.79,7.4734]
[1742423524415,0.05667564,133.81,133.79,7.4734]
[1742423524718,41.1609679,133.85,133.8,13.49817947]
[1742423525126,41.1609679,133.85,133.82,7.4716]
[1742423525323,41.1609679,133.85,133.8,13.49817947]
[1742423525918,0.04961059,133.84,133.82,7.4714]
[1742423526124,0.04961059,133.84,133.81,0.05343947]
[1742423526623,0.04961059,133.84,133.82,7.4714]
[1742423527026,13.54779006,133.84,133.81,0.05343947]
[1742423527527,21.01869006,133.84,133.81,0.05343947]
[1742423528127,7.4713,133.83,133.81,0.05343947]
[1742423528322,13.54779006,133.84,133.81,0.05343947]
[1742423528524,40.42779006,133.84,133.81,0.05343947]
[1742423528926,7.4715,133.83,133.81,0.05343947]
[1742423529130,40.42779006,133.84,133.81,0.05343947]
[1742423529326,13.54779006,133.84,133.81,0.05343947]
[1742423529523,13.54779006,133.84,133.82,7.4717]
[1742423530031,13.54779006,133.84,133.81,0.05343947]
[1742423530329,21.01849006,133.84,133.81,7.52553947]
[1742423530830,0.04961059,133.84,133.81,0.05343947]
[1742423531326,0.04961059,133.84,133.83,7.4712]
[1742423531532,13.49817947,133.88,133.82,40.37817947]
[1742423531729,13.49817947,133.88,133.84,13.49817947]
[1742423531930,13.49817947,133.88,133.86,7.4692]
[1742423532231,13.49817947,133.87,133.81,26.88]
[1742423532429,13.49817947,133.85,133.82,7.4715]
[1742423532630,13.55548452,133.85,133.83,0.05245879]
[1742423533125,21.02568452,133.85,133.83,0.05245879]
[1742423533423,13.55548452,133.85,133.83,0.05245879]
[1742423533819,21.02568452,133.85,133.83,0.05245879]
[1742423534224,13.55548452,133.85,133.83,0.05245879]
[1742423535320,21.02568452,133.85,133.83,0.05245879]
[1742423537829,0.05730505,133.85,133.83,7.52355879]
[1742423538032,0.05730505,133.85,133.83,13.55063826]
[1742423538223,0.05730505,133.85,133.84,26.88]
[1742423539026,0.05730505,133.85,133.84,34.3507]
[1742423539231,13.49817947,133.9,133.84,28.9473]
[1742423539431,13.49817947,133.9,133.85,13.49817947]
[1742423539630,20.96587947,133.9,133.86,7.4693]
[1742423540331,20.96587947,133.9,133.85,13.49817947]
[1742423540332,0.0565488,133.89,133.87,7.52286647]
[1742423541234,0.0565488,133.89,133.88,7.4684]
[1742423541633,0.0565488,133.89,133.87,26.93396647]
[1742423542037,0.0565488,133.89,133.88,7.4684]
[1742423542335,0.0565488,133.89,133.87,26.93396647]
[1742423542539,0.0565488,133.89,133.87,34.40266647]
[1742423542733,0.0565488,133.89,133.87,26.93396647]
[1742423543137,0.0565488,133.89,133.87,34.40266647]
[1742423543531,0.0565488,133.89,133.87,40.43214594]
[1742423543837,0.0565488,133.89,133.88,7.4684]
[1742423544035,54.65914737,133.95,133.88,13.49817947]
[1742423544233,30.86256011,133.95,133.91,13.49817947]
[1742423544435,13.49817947,133.97,133.92,26.86]
[1742423544937,13.49817947,133.96,133.92,26.86]
[1742423545336,0.05097481,133.95,133.93,0.05651274]
[1742423545836,0.05097481,133.95,133.94,7.4649]
[1742423546133,0.05097481,133.95,133.93,0.05651274]
[1742423546334,0.05097481,133.95,133.93,7.52211274]
[1742423546533,0.05097481,133.95,133.93,0.05651274]
[1742423547139,13.49817947,133.94,133.93,0.05651274]
[1742423549138,21.01405428,133.95,133.93,0.05651274]
[1742423550539,0.05097481,133.95,133.93,0.05651274]
[1742423551438,0.05097481,133.95,133.93,26.91651274]
[1742423552445,0.05097481,133.95,133.94,7.4651]
[1742423552650,0.05097481,133.95,133.94,20.96327947]
[1742423554641,13.49817947,133.98,133.96,7.4639]
[1742423555740,271.55097947,133.99,133.96,7.4639]
[1742423555950,0.04776254,133.98,133.96,7.4639]
[1742423556150,0.04776254,133.98,133.96,7.51393655]
[1742423556650,0.04776254,133.98,133.96,0.05003655]
[1742423557242,13.54594201,133.98,133.96,0.05003655]
[1742423557443,13.49817947,133.97,133.96,0.05003655]
[1742423557846,13.49817947,133.97,133.91,2.0136]
[1742423558048,13.49817947,133.95,133.91,28.8536]
[1742423558243,13.49817947,133.94,133.89,13.49817947]
[1742423558449,7.4659,133.93,133.9,26.84]
[1742423559056,7.51924907,133.93,133.9,26.89524134]
[1742423559453,7.51924907,133.93,133.9,34.36254134]
[1742423561259,7.4668,133.91,133.9,0.05524134]
[1742423564363,13.49817947,133.92,133.9,0.05524134]
[1742423565466,7.4663,133.92,133.9,0.05524134]
[1742423565666,13.55152854,133.93,133.9,0.05524134]
[1742423566064,21.01752854,133.93,133.9,0.05524134]
[1742423566962,21.01752854,133.93,133.9,7.52254134]
[1742423567460,0.05334907,133.93,133.9,13.55342081]
[1742423567655,0.05334907,133.93,133.92,7.4662]
[1742423571262,0.05334907,133.93,133.92,20.96437947]
[1742423572076,280.8424,133.99,133.96,7.4635]
[1742423572374,13.49817947,133.98,133.93,40.33817947]
[1742423572574,20.96137947,133.98,133.95,7.4644]
[1742423572874,13.49817947,133.97,133.93,26.84]
[1742423573066,20.96197947,133.97,133.94,7.4648]
[1742423573265,20.96197947,133.97,133.94,7.52193912]
[1742423573266,0.04958019,133.96,133.94,7.52193912]
[1742423576175,7.51368019,133.96,133.94,7.52193912]
[1742423576579,0.04958019,133.96,133.94,7.52193912]
[1742423578478,0.04958019,133.96,133.95,7.4645]
[1742423580775,0.04958019,133.96,133.95,20.96267947]
[1742423584880,0.04958019,133.96,133.94,7.52193912]
[1742423585483,0.04958019,133.96,133.94,0.05713912]
[1742423586679,7.4645,133.95,133.94,0.05713912]
[1742423586879,0.04958019,133.96,133.94,0.05713912]
[1742423587082,7.51408019,133.96,133.94,0.05713912]
[1742423587278,0.04958019,133.96,133.94,0.05713912]
[1742423587480,13.54775966,133.96,133.94,0.05713912]
[1742423587682,7.4645,133.95,133.94,0.05713912]
[1742423588684,20.96267947,133.95,133.94,0.05713912]
[1742423589883,7.4645,133.95,133.94,0.05713912]
[1742423591375,0.04958019,133.96,133.94,0.05713912]
[1742423591781,0.04958019,133.96,133.95,7.4645]
[1742423592185,0.04958019,133.96,133.94,0.05713912]
[1742423593877,0.04958019,133.96,133.95,7.4645]
[1742423594788,0.04958019,133.96,133.95,20.96267947]
[1742423595287,8.019e-05,133.96,133.95,20.96267947]
[1742423597488,10.29840779,134.02,134.01,7.4612]
[1742423598690,13.49817947,134.02,134.0,0.05354243]
[1742423598988,13.49817947,134.01,134.0,0.05354243]
[1742423599587,13.49817947,134.02,134.0,0.05354243]
[1742423599790,13.55366553,134.03,134.0,0.05354243]
[1742423599990,7.4609,134.02,134.0,0.05354243]
[1742423600586,20.95907947,134.02,134.0,0.05354243]
[1742423600988,7.4612,134.01,134.0,0.05354243]
[1742423601197,20.95937947,134.01,134.0,0.05354243]
[1742423603193,7.4612,134.01,134.0,0.05354243]
[1742423603394,7.4632,133.98,133.96,2.0094]
[1742423603694,7.4632,133.98,133.95,26.82]
[1742423603895,7.4632,133.98,133.95,40.31817947]
[1742423604398,13.49817947,134.01,133.97,7.4633]
[1742423604594,0.0555604,133.98,133.97,7.4633]
[1742423604791,0.0555604,133.98,133.97,20.96147947]
[1742423604991,0.0555604,133.98,133.95,26.8763253]
[1742423605197,0.0555604,133.98,133.96,13.49817947]
[1742423605594,0.0555604,133.98,133.96,20.96177947]
[1742423606397,7.5184604,133.98,133.96,7.4636]
[1742423606898,7.4634,133.97,133.95,40.37450477]
[1742423607105,0.0555604,133.98,133.95,40.37450477]
[1742423607300,0.0555604,133.98,133.97,13.49817947]
[1742423607500,0.0555604,133.98,133.97,20.96157947]
[1742423607899,0.0555604,133.98,133.97,13.49817947]
[1742423608607,0.0555604,133.98,133.97,7.4634]
[1742423611905,0.0555604,133.98,133.96,7.4637]
[1742423612404,0.0555604,133.98,133.97,7.4634]
[1742423613503,0.0555604,133.98,133.97,20.96157947]
[1742423616606,6.04e-05,133.98,133.97,20.96157947]
[1742423621911,246.36,134.06,133.97,20.96157947]
[1742423621912,5.59735098,134.07,133.97,267.21817947]
[1742423622214,5.59735098,134.07,134.06,13.49817947]
[1742423622417,41.1609679,134.08,134.07,7.4578]
[1742423623006,41.1609679,134.08,134.06,34.33404069]
[1742423623313,41.1609679,134.08,134.06,0.05594069]
[1742423623709,41.1609679,134.08,134.06,7.51424069]
[1742423624012,41.1609679,134.08,134.06,0.05594069]
[1742423624207,41.1609679,134.08,134.06,7.51394069]
[1742423624404,41.1609679,134.08,134.06,0.05594069]
[1742423626511,47.82605331,134.09,134.06,0.05594069]
[1742423626716,13.49817947,134.07,134.06,0.05594069]
[1742423627215,13.49817947,134.07,134.02,7.4603]
[1742423627416,13.49817947,134.07,134.03,13.49817947]
[1742423627807,13.49817947,134.07,134.04,7.4592]
[1742423628007,51.78917947,134.08,134.04,7.4592]
[1742423628213,44.33147947,134.08,134.03,13.49817947]
[1742423628414,44.33147947,134.08,134.05,7.51120783]
[1742423628415,0.05628976,134.07,134.05,7.51120783]
[1742423629117,13.49817947,134.06,134.05,0.05260783]
[1742423629718,20.95657947,134.06,134.05,0.05260783]
[1742423630619,7.4597,134.04,134.01,20.95907947]
[1742423630913,13.49817947,134.04,134.0,7.4615]
[1742423631120,13.49817947,134.04,134.0,13.49817947]
[1742423631717,20.95787947,134.04,134.01,7.4608]
[1742423631921,0.05447879,134.03,134.01,7.51630102]
[1742423632218,7.51457879,134.03,134.01,7.51630102]
[1742423633624,7.51457879,134.03,134.01,0.05550102]
[1742423634220,7.51457879,134.03,134.01,7.51660102]
[1742423634425,7.51457879,134.03,134.01,0.05550102]
[1742423637119,0.05447879,134.03,134.01,7.51660102]
[1742423637321,0.05447879,134.03,134.01,13.55368049]
[1742423638026,0.05447879,134.03,134.01,21.01448049]
[1742423639027,0.05447879,134.03,134.01,7.51630102]
[1742423643842,0.05447879,134.03,134.02,7.4606]
[1742423647045,0.05447879,134.03,134.02,20.95877947]
[1742423652453,0.05447879,134.03,134.02,47.75877947]
[1742423653050,0.05447879,134.03,134.02,26.8]
[1742423653255,0.05447879,134.03,134.01,21.01468049]
[1742423653843,0.05447879,134.03,134.01,13.55368049]
[1742423654253,7.51477879,134.03,134.01,13.55368049]
[1742423654953,7.4606,134.02,134.01,0.05550102]
[1742423659859,7.4628,133.99,133.96,2.1327]
[1742423660052,7.4628,133.99,133.95,42.29207947]
[1742423660256,7.4628,133.99,133.97,7.4634]
[1742423660558,7.462,134.0,133.97,7.4634]
[1742423660959,7.51636918,134.0,133.97,7.51115405]
[1742423661657,0.05436918,134.0,133.98,13.49817947]
[1742423661960,0.05436918,134.0,133.97,13.54593352]
[1742423662958,0.05436918,134.0,133.98,7.4626]
[1742423663557,0.05436918,134.0,133.99,7.4623]
[1742423665259,0.05436918,134.0,133.99,20.96047947]
[1742423666561,0.05436918,134.0,133.98,34.2626]
[1742423668965,7.51616918,134.0,133.98,34.2626]
[1742423670362,0.05436918,134.0,133.98,34.2626]
[1742423671470,7.51616918,134.0,133.98,34.2626]
[1742423672467,7.51616918,134.0,133.98,7.4626]
[1742423673164,0.05436918,134.0,133.98,7.4626]
[1742423673362,0.05436918,134.0,133.99,7.4623]
[1742423677073,0.05436918,134.0,133.98,7.4626]
[1742423677274,7.51626918,134.0,133.98,7.4626]
[1742423678069,7.51626918,134.0,133.97,21.00903352]
[1742423678576,7.51626918,134.0,133.98,7.4628]
[1742423679376,7.4623,133.99,133.97,13.54593352]
[1742423680277,7.4623,133.99,133.97,21.00923352]
[1742423680477,0.05436918,134.0,133.97,21.00923352]
[1742423680972,13.55254865,134.0,133.97,0.04775405]
[1742423681179,13.49817947,133.98,133.93,1.9633]
[1742423681576,7.4643,133.96,133.93,1.9633]
[1742423681774,7.4643,133.96,133.93,9.4287]
[1742423681981,13.49817947,133.98,133.93,15.46147947]
[1742423682179,7.4637,133.97,133.93,15.46147947]
[1742423682381,7.51927051,133.97,133.94,0.05518983]
[1742423682680,7.51927051,133.97,133.94,7.51998983]
[1742423683277,7.51927051,133.97,133.94,0.05518983]
[1742423683982,7.464,133.96,133.94,7.52018983]
[1742423684378,13.55374998,133.97,133.94,0.05518983]
[1742423684580,7.4645,133.95,133.94,0.05518983]
[1742423686785,20.96247947,133.96,133.94,0.05518983]
[1742423687379,7.4643,133.96,133.94,7.52018983]
[1742423687586,21.01744998,133.97,133.94,7.52018983]
[1742423687984,21.01744998,133.97,133.94,0.05518983]
[1742423688186,21.01744998,133.97,133.95,7.4645]
[1742423688379,21.01744998,133.97,133.94,0.05518983]
[1742423689188,21.01744998,133.97,133.94,7.51988983]
[1742423689786,7.4641,133.96,133.94,7.51988983]
[1742423689987,13.55374998,133.97,133.94,7.51988983]
[1742423691189,21.01744998,133.97,133.95,7.4645]
[1742423691390,13.55374998,133.97,133.95,7.4645]
[1742423692783,13.55374998,133.97,133.94,7.51998983]
[1742423693487,13.55374998,133.97,133.94,0.05518983]
[1742423693990,13.55374998,133.97,133.94,7.51978983]
[1742423694290,13.55374998,133.97,133.94,0.05518983]
[1742423694788,21.01724998,133.97,133.94,0.05518983]
[1742423694982,26.8,133.96,133.94,0.05518983]
[1742423695386,13.49817947,133.95,133.94,0.05518983]
[1742423696090,13.49817947,133.95,133.94,7.52028983]
[1742423696692,26.8,133.96,133.95,7.4645]
[1742423696885,0.05557051,133.97,133.94,0.05518983]
[1742423697089,0.05557051,133.97,133.94,13.5533693]
[1742423697283,0.05557051,133.97,133.96,7.464]
[1742423704400,0.05557051,133.97,133.96,20.96217947]
[1742423704993,40.29817947,134.02,133.96,40.29817947]
[1742423705200,246.32,134.03,133.99,13.49817947]
[1742423705401,273.12,134.03,133.99,13.49817947]
[1742423706001,286.61817947,134.03,133.99,13.49817947]
[1742423706206,0.05498587,134.02,134.01,7.4608]
[1742423710605,0.05498587,134.02,134.0,7.51236103]
[1742423710804,13.55316534,134.02,134.0,0.05086103]
[1742423711206,21.01406534,134.02,134.0,0.05086103]
[1742423711595,13.55316534,134.02,134.0,0.05086103]
[1742423711801,20.95937947,134.01,134.0,0.05086103]
[1742423712002,47.73937947,134.01,134.0,0.05086103]
[1742423713206,7.4626,133.99,133.95,13.49817947]
[1742423713400,20.96077947,133.99,133.96,7.4635]
[1742423714406,21.01202815,133.99,133.96,7.51203378]
[1742423715305,21.01202815,133.99,133.97,7.4634]
[1742423718711,21.01202815,133.99,133.96,0.04853378]
[1742423719009,7.4629,133.98,133.96,0.04853378]
[1742423719406,34.2429,133.98,133.96,0.04853378]
[1742423719805,26.78,133.98,133.96,0.04853378]
[1742423720305,26.78,133.98,133.96,13.54671325]
[1742423720505,7.51384868,133.99,133.96,13.54671325]
[1742423721210,0.05124868,133.99,133.97,7.4631]
[1742423722110,0.05124868,133.99,133.98,7.4629]
[1742423722510,0.05124868,133.99,133.96,13.54671325]
[1742423722810,0.05124868,133.99,133.97,7.4631]
[1742423724212,7.51364868,133.99,133.97,7.4631]
[1742423726616,0.05124868,133.99,133.97,7.4631]
[1742423727815,7.51354868,133.99,133.97,7.4631]
[1742423728808,13.49817947,133.98,133.96,0.04853378]
[1742423729011,40.27817947,133.97,133.96,0.04853378]
[1742423729518,47.74157947,133.97,133.96,0.04853378]
[1742423730419,7.4654,133.94,133.91,7.4665]
[1742423730623,13.49817947,133.94,133.9,26.78]
[1742423731118,20.96357947,133.94,133.9,26.78]
[1742423731316,13.49817947,133.96,133.9,26.78]
[1742423731516,26.78,133.99,133.93,13.49817947]
[1742423731710,13.49817947,133.99,133.97,7.4631]
[1742423732117,13.55480785,133.99,133.97,7.4631]
[1742423732313,13.55480785,133.99,133.97,0.05290001]
[1742423733024,21.01740785,133.99,133.97,0.05290001]
[1742423733521,13.55480785,133.99,133.98,7.4629]
[1742423735821,0.05662838,133.99,133.98,7.4629]
[1742423736126,0.05662838,133.99,133.97,0.05290001]
[1742423737523,0.05662838,133.99,133.98,7.4629]
[1742423738921,21.01730785,133.99,133.97,7.51600001]
[1742423739422,21.01730785,133.99,133.97,0.05290001]
[1742423740028,7.4629,133.98,133.97,0.05290001]
[1742423742129,26.78,133.98,133.91,26.78]
[1742423742331,13.49817947,133.94,133.91,26.78]
[1742423742523,13.49817947,133.94,133.91,7.4664]
[1742423742924,13.49817947,133.92,133.88,2.0895]
[1742423743120,13.49817947,133.92,133.9,7.4672]
[1742423743329,0.05271349,133.91,133.9,7.4672]
[1742423753836,0.05271349,133.91,133.89,0.05311702]
[1742423754037,13.49817947,133.9,133.89,0.05311702]
[1742423754339,20.96547947,133.9,133.89,0.05311702]
[1742423758933,13.49817947,133.9,133.89,0.05311702]
[1742423759334,13.49817947,133.9,133.89,7.52101702]
[1742423764639,0.05271349,133.91,133.9,7.4673]
[1742423765231,0.05271349,133.91,133.9,34.2473]
[1742423768338,40.27817947,133.95,133.94,7.4651]
[1742423768637,13.49817947,133.95,133.94,7.4651]
[1742423769233,13.49817947,133.99,133.94,13.49817947]
[1742423769434,0.05351425,133.98,133.95,0.05595335]
[1742423769634,0.05351425,133.98,133.95,13.55413282]
[1742423769839,13.55169372,133.98,133.95,0.05595335]
[1742423770541,13.49817947,133.97,133.95,7.52015335]
[1742423770734,13.49817947,133.97,133.95,0.05595335]
[1742423770941,20.96187947,133.97,133.95,0.05595335]
[1742423771338,0.05351425,133.98,133.96,40.27817947]
[1742423771538,0.05351425,133.98,133.97,20.96157947]
[1742423772146,13.49817947,134.04,133.97,13.49817947]
[1742423772346,13.49817947,134.04,133.99,13.49817947]
[1742423772541,13.49817947,134.04,133.99,40.27817947]
[1742423772746,20.95777947,134.04,134.01,7.4608]
[1742423772951,20.95777947,134.04,133.99,40.27817947]
[1742423773152,13.49817947,134.03,133.99,40.27817947]
[1742423773348,13.54989142,134.03,134.0,7.51454849]
[1742423774245,21.00999142,134.03,134.0,7.51454849]
[1742423774448,13.54989142,134.03,134.0,0.05294849]
[1742423774647,13.49817947,134.01,134.0,0.05294849]
[1742423774852,20.95937947,134.01,134.0,0.05294849]
[1742423779050,13.49817947,134.01,134.0,0.05294849]
[1742423779948,47.73887947,134.02,134.0,0.05294849]
[1742423780159,13.49817947,134.02,134.0,0.05294849]
[1742423781054,0.05171195,134.03,134.0,0.05294849]
[1742423781455,7.51191195,134.03,134.0,0.05294849]
[1742423781857,0.05171195,134.03,134.0,0.05294849]
[1742423782358,0.05171195,134.03,134.01,7.4609]
[1742423782561,0.05171195,134.03,134.0,0.05294849]
[1742423782954,7.51221195,134.03,134.0,0.05294849]
[1742423783152,0.05171195,134.03,134.0,0.05294849]
[1742423783660,7.4609,134.02,134.0,0.05294849]
[1742423784360,7.51201195,134.03,134.0,0.05294849]
[1742423784956,0.05171195,134.03,134.0,0.05294849]
[1742423785363,0.05171195,134.03,134.01,7.4609]
[1742423785561,7.51211195,134.03,134.0,0.05294849]
[1742423786065,0.05171195,134.03,134.0,0.05294849]
[1742423786457,0.05171195,134.03,134.0,7.51444849]
[1742423786661,7.51211195,134.03,134.0,7.51444849]
[1742423787669,7.51211195,134.03,134.01,7.4612]
[1742423788465,0.05171195,134.03,134.01,7.4612]
[1742423788767,0.05171195,134.03,134.02,7.4606]
[1742423788965,0.05171195,134.03,134.0,0.05294849]
[1742423789166,0.05171195,134.03,134.01,7.4607]
[1742423792267,0.05171195,134.03,134.02,34.2206]
[1742423792971,0.05171195,134.03,134.02,7.4606]
[1742423793169,0.05171195,134.03,134.02,26.76]
[1742423794361,7.51181195,134.03,134.02,26.76]
[1742423794771,7.4607,134.02,134.0,28.80174849]
[1742423795072,0.05171195,134.03,134.0,0.05294849]
[1742423795774,7.461,134.02,134.0,0.05294849]
[1742423796370,0.05171195,134.03,134.0,0.05294849]
[1742423797476,0.05171195,134.03,134.01,7.4609]
[1742423797777,0.05171195,134.03,134.0,0.05294849]
[1742423797978,7.51181195,134.03,134.0,7.51434849]
[1742423798178,0.05171195,134.03,134.0,0.05294849]
[1742423799184,0.05171195,134.03,134.01,7.4611]
[1742423800486,7.51181195,134.03,134.01,7.4611]
[1742423800688,0.05171195,134.03,134.01,7.4611]
[1742423800886,0.05171195,134.03,134.0,0.05294849]
[1742423801185,13.52375925,134.03,134.0,0.05294849]
[1742423801487,13.52375925,134.03,134.0,7.51464849]
[1742423801786,20.98415925,134.03,134.0,7.51464849]
[1742423802485,20.98415925,134.03,134.01,7.4611]
[1742423803184,7.51211195,134.03,134.01,7.4611]
[1742423804182,7.51211195,134.03,134.0,7.51444849]
[1742423804386,7.4607,134.02,134.0,7.51444849]
[1742423804587,0.05171195,134.03,134.0,7.51444849]
[1742423805183,7.51211195,134.03,134.0,7.51444849]
[1742423805588,7.51211195,134.03,134.01,7.4611]
[1742423806790,7.51211195,134.03,134.0,7.51444849]
[1742423808491,7.4607,134.02,134.0,0.05294849]
[1742423809583,7.4607,134.02,134.0,7.51464849]
[1742423810486,7.4612,134.01,134.0,0.05294849]
[1742423811792,40.28375925,134.03,134.0,0.05294849]
[1742423811793,26.81171195,134.03,134.0,0.05294849]
[1742423812086,26.81171195,134.03,134.01,7.4609]
[1742423812492,0.05171195,134.03,134.01,7.4609]
[1742423812991,0.05171195,134.03,134.02,7.4606]
[1742423813186,0.05171195,134.03,134.0,26.81294849]
[1742423813389,0.05171195,134.03,134.01,7.4609]
[1742423813797,0.05171195,134.03,134.0,40.28499579]
[1742423814289,0.05171195,134.03,134.02,7.4606]
[1742423814487,0.05171195,134.03,134.02,20.9326473]
[1742423818489,0.05171195,134.03,134.02,7.4606]
[1742423818890,0.05171195,134.03,134.01,9.3931]
[1742423819389,0.05171195,134.03,134.01,1.9322]
[1742423820192,0.05171195,134.03,134.02,7.4606]
[1742423820394,0.05171195,134.03,134.02,20.9326473]
[1742423821888,0.05171195,134.03,134.01,7.4609]
[1742423822092,0.05171195,134.03,134.0,26.81294849]
[1742423822493,7.51221195,134.03,134.0,34.27444849]
[1742423822797,7.51221195,134.03,134.0,26.81294849]
[1742423822998,0.05171195,134.03,134.01,7.4611]
[1742423823198,0.05171195,134.03,134.0,26.81294849]
[1742423823599,7.51201195,134.03,134.0,34.27424849]
[1742423823897,0.05171195,134.03,134.0,26.81294849]
[1742423824098,13.52375925,134.03,134.0,0.05294849]
[1742423824693,7.4612,134.01,134.0,0.05294849]
[1742423825700,7.4609,134.02,134.0,0.05294849]
[1742423826298,13.52375925,134.03,134.0,7.51464849]
[1742423826898,0.05171195,134.03,134.01,7.4612]
[1742423827203,0.05171195,134.03,134.0,0.05294849]
[1742423828104,0.05171195,134.03,134.01,7.4609]
[1742423828306,0.05171195,134.03,134.0,0.05294849]
[1742423828604,0.05171195,134.03,134.01,7.4611]
[1742423830096,0.05171195,134.03,134.02,7.4606]
[1742423831594,10.29840779,134.07,134.06,7.4584]
[1742423831999,41.1609679,134.08,134.06,7.4584]
[1742423832196,41.1609679,134.08,134.07,7.4578]
[1742423834006,40.24662704,134.08,134.07,47.6898473]
[1742423834300,2.704e-05,134.08,134.07,47.6898473]
[1742423834501,64.45960622,134.09,134.08,7.4573]
[1742423834704,106.57275549,134.11,134.08,13.4720473]
[1742423834898,114.13783183,134.14,134.1,13.4720473]
[1742423835103,114.13783183,134.14,134.13,13.4720473]
[1742423836006,114.13783183,134.14,134.12,13.52962808]
[1742423836706,114.13783183,134.14,134.12,0.05758078]
[1742423836902,121.59183183,134.14,134.12,0.05758078]
[1742423837106,21.01844858,134.13,134.0,246.12]
[1742423837306,21.01844858,134.11,134.03,26.76]
[1742423837511,28.47444858,134.11,134.04,7.4593]
[1742423838013,28.47444858,134.11,134.1,31.01181543]
[1742423838613,28.47444858,134.11,134.1,27.80861543]
[1742423838812,28.47444858,134.11,134.1,24.60541543]
[1742423840317,7.4562,134.1,134.09,0.0567394]
[1742423840712,21.01844858,134.11,134.04,10.23245867]
[1742423840913,21.01844858,134.08,134.04,10.23245867]